[Event "Titled Tuesday Blitz July 4 Early 2023"]
[White "Vila Dupla, Aurelio"]
[Black "Sovetbekova, Nurai"]
[WhiteFideId "2203383"]
[BlackFideId "13801910"]
[WhiteElo "2181"]
[BlackElo "2346"]
[Result "0-1"]
[Round "6"]
[TimeControl "180+2"]
[Date "2023.07.04"]
[WhiteClock "0:00:00"]
[BlackClock "0:00:03"]
[Board "189"]

1. Nf3 {[%clk 0:03:00]}  d5 {[%clk 0:02:58]} 2. d4 {[%clk 0:03:00]}  Nf6 {[%clk 0:02:56]} 3. c4 {[%clk 0:02:59]}  e6 {[%clk 0:02:54]} 4. cxd5 {[%clk 0:02:59]}  exd5 {[%clk 0:02:52]} 5. Nc3 {[%clk 0:02:59]}  c6 {[%clk 0:02:47]} 6. Qc2 {[%clk 0:02:58]}  g6 {[%clk 0:02:45]} 7. Bg5 {[%clk 0:02:56]}  Be7 {[%clk 0:02:42]} 8. e3 {[%clk 0:02:54]}  Bf5 {[%clk 0:02:42]} 9. Bd3 {[%clk 0:02:54]}  Bxd3 {[%clk 0:02:42]} 10. Qxd3 {[%clk 0:02:55]}  Nbd7 {[%clk 0:02:33]} 11. O-O {[%clk 0:02:52]}  O-O {[%clk 0:02:32]} 12. Rfe1 {[%clk 0:02:51]}  Ng4 {[%clk 0:02:30]} 13. Bxe7 {[%clk 0:02:50]}  Qxe7 {[%clk 0:02:30]} 14. e4 {[%clk 0:02:43]}  Qd6 {[%clk 0:02:19]} 15. h3 {[%clk 0:02:29]}  Nh6 {[%clk 0:02:14]} 16. Qe3 {[%clk 0:02:07]}  Kg7 {[%clk 0:02:11]} 17. exd5 {[%clk 0:02:00]}  cxd5 {[%clk 0:02:09]} 18. Qg5 {[%clk 0:01:58]}  Nb6 {[%clk 0:02:02]} 19. Qe5+ {[%clk 0:01:53]}  Qxe5 {[%clk 0:02:01]} 20. Rxe5 {[%clk 0:01:53]}  Rad8 {[%clk 0:02:00]} 21. Rae1 {[%clk 0:01:48]}  Ng8 {[%clk 0:01:45]} 22. b3 {[%clk 0:01:42]}  Nf6 {[%clk 0:01:45]} 23. Re7 {[%clk 0:01:42]}  Rfe8 {[%clk 0:01:39]} 24. Nb5 {[%clk 0:01:32]}  Nbd7 {[%clk 0:01:13]} 25. Rxe8 {[%clk 0:01:24]}  Nxe8 {[%clk 0:01:12]} 26. Nxa7 {[%clk 0:01:15]}  Nd6 {[%clk 0:01:11]} 27. a4 {[%clk 0:01:03]}  Ra8 {[%clk 0:01:06]} 28. Nb5 {[%clk 0:01:03]}  Nxb5 {[%clk 0:01:03]} 29. axb5 {[%clk 0:01:03]}  Kf8 {[%clk 0:00:44]} 30. Ne5 {[%clk 0:00:54]}  Nb6 {[%clk 0:00:26]} 31. Rc1 {[%clk 0:00:48]}  f6 {[%clk 0:00:25]} 32. Nd3 {[%clk 0:00:44]}  Ra3 {[%clk 0:00:19]} 33. Nc5 {[%clk 0:00:37]}  Ra5 {[%clk 0:00:18]} 34. Nxb7 {[%clk 0:00:32]}  Rxb5 {[%clk 0:00:18]} 35. Rc7 {[%clk 0:00:32]}  Rxb3 {[%clk 0:00:15]} 36. Rxh7 {[%clk 0:00:29]}  Nc4 {[%clk 0:00:14]} 37. Nc5 {[%clk 0:00:26]}  Rb1+ {[%clk 0:00:14]} 38. Kh2 {[%clk 0:00:26]}  Rd1 {[%clk 0:00:12]} 39. Ne6+ {[%clk 0:00:23]}  Ke8 {[%clk 0:00:13]} 40. Rg7 {[%clk 0:00:22]}  g5 {[%clk 0:00:13]} 41. Nc7+ {[%clk 0:00:17]}  Kf8 {[%clk 0:00:12]} 42. Ne6+ {[%clk 0:00:17]}  Ke8 {[%clk 0:00:12]} 43. Rc7 {[%clk 0:00:18]}  Nd2 {[%clk 0:00:09]} 44. Kg3 {[%clk 0:00:09]}  Ne4+ {[%clk 0:00:07]} 45. Kg4 {[%clk 0:00:08]}  Nxf2+ {[%clk 0:00:07]} 46. Kf5 {[%clk 0:00:08]}  Ne4 {[%clk 0:00:05]} 47. Nc5 {[%clk 0:00:05]}  Nxc5 {[%clk 0:00:05]} 48. dxc5 {[%clk 0:00:05]}  Kd8 {[%clk 0:00:04]} 49. Rf7 {[%clk 0:00:03]}  d4 {[%clk 0:00:05]} 50. c6 {[%clk 0:00:01]}  d3 {[%clk 0:00:05]} 51. Rd7+ {[%clk 0:00:01]}  Kc8 {[%clk 0:00:05]} 52. Kxf6 {[%clk 0:00:02]}  d2 {[%clk 0:00:05]} 53. Kxg5 {[%clk 0:00:02]}  Kb8 {[%clk 0:00:03]} 54. Rd3 {[%clk 0:00:00]}  Kc7 {[%clk 0:00:03]} 0-1


[Site "https://www.chess.com"]

[Event "Titled Tuesday Blitz July 4 Early 2023"]
[White "Rudzinska, Michalina"]
[Black "Feliz Dotel, Dewar Bienvenido"]
[WhiteFideId "1172883"]
[BlackFideId "6402801"]
[WhiteElo "2330"]
[BlackElo "2174"]
[Result "1-0"]
[Round "6"]
[TimeControl "180+2"]
[Date "2023.07.04"]
[WhiteClock "0:00:36"]
[BlackClock "0:00:00"]
[Board "190"]

1. e4 {[%clk 0:02:50]}  e5 {[%clk 0:02:58]} 2. Nf3 {[%clk 0:02:47]}  Nc6 {[%clk 0:02:58]} 3. Nc3 {[%clk 0:02:47]}  Nf6 {[%clk 0:02:57]} 4. a4 {[%clk 0:02:47]}  Bb4 {[%clk 0:02:57]} 5. Bd3 {[%clk 0:02:46]}  O-O {[%clk 0:02:51]} 6. Nd5 {[%clk 0:02:36]}  Bc5 {[%clk 0:02:34]} 7. c3 {[%clk 0:02:29]}  a6 {[%clk 0:02:21]} 8. O-O {[%clk 0:02:28]}  d6 {[%clk 0:02:17]} 9. h3 {[%clk 0:02:27]}  Be6 {[%clk 0:02:14]} 10. b4 {[%clk 0:02:20]}  Ba7 {[%clk 0:02:13]} 11. b5 {[%clk 0:02:16]}  axb5 {[%clk 0:02:07]} 12. axb5 {[%clk 0:02:17]}  Nxd5 {[%clk 0:02:03]} 13. exd5 {[%clk 0:02:16]}  Bxd5 {[%clk 0:02:03]} 14. bxc6 {[%clk 0:02:16]}  Bxf2+ {[%clk 0:01:57]} 15. Rxf2 {[%clk 0:02:17]}  Rxa1 {[%clk 0:01:57]} 16. Bc2 {[%clk 0:01:55]}  Bxc6 {[%clk 0:01:50]} 17. d3 {[%clk 0:01:52]}  h6 {[%clk 0:01:46]} 18. Rf1 {[%clk 0:01:51]}  f5 {[%clk 0:01:39]} 19. Qe2 {[%clk 0:01:43]}  Qf6 {[%clk 0:01:23]} 20. Bb2 {[%clk 0:01:39]}  Rxf1+ {[%clk 0:01:21]} 21. Qxf1 {[%clk 0:01:40]}  e4 {[%clk 0:01:15]} 22. Nd4 {[%clk 0:01:39]}  exd3 {[%clk 0:01:06]} 23. Bxd3 {[%clk 0:01:34]}  Qg5 {[%clk 0:00:55]} 24. Qf2 {[%clk 0:01:21]}  Bxg2 {[%clk 0:00:09]} 25. Ne6 {[%clk 0:00:55]}  Qe7 {[%clk 0:00:07]} 26. Nxf8 {[%clk 0:00:53]}  Bxh3 {[%clk 0:00:07]} 27. Qg3 {[%clk 0:00:40]}  Bg4 {[%clk 0:00:00]} 28. Ng6 {[%clk 0:00:36]} 1-0


[Site "https://www.chess.com"]

[Event "Titled Tuesday Blitz July 4 Early 2023"]
[White "Lisjak, Zlatko"]
[Black "Vifleemskaia, Svetlana"]
[WhiteFideId "14502186"]
[BlackFideId "4129490"]
[WhiteElo "2125"]
[BlackElo "2317"]
[Result "0-1"]
[Round "6"]
[TimeControl "180+2"]
[Date "2023.07.04"]
[WhiteClock "0:00:05"]
[BlackClock "0:00:42"]
[Board "191"]

1. d4 {[%clk 0:03:00]}  Nf6 {[%clk 0:02:58]} 2. Nc3 {[%clk 0:03:01]}  d5 {[%clk 0:02:57]} 3. Bf4 {[%clk 0:03:00]}  a5 {[%clk 0:02:57]} 4. e3 {[%clk 0:02:59]}  c6 {[%clk 0:02:56]} 5. Bd3 {[%clk 0:02:55]}  b5 {[%clk 0:02:55]} 6. Nf3 {[%clk 0:02:50]}  Bg4 {[%clk 0:02:54]} 7. h3 {[%clk 0:02:48]}  Bh5 {[%clk 0:02:54]} 8. a3 {[%clk 0:02:43]}  Nbd7 {[%clk 0:02:53]} 9. O-O {[%clk 0:02:41]}  e6 {[%clk 0:02:51]} 10. e4 {[%clk 0:02:40]}  b4 {[%clk 0:02:48]} 11. Na4 {[%clk 0:02:25]}  dxe4 {[%clk 0:02:46]} 12. Be2 {[%clk 0:02:23]}  exf3 {[%clk 0:02:46]} 13. Bxf3 {[%clk 0:02:24]}  Bxf3 {[%clk 0:02:43]} 14. Qxf3 {[%clk 0:02:23]}  Rc8 {[%clk 0:02:38]} 15. axb4 {[%clk 0:02:20]}  axb4 {[%clk 0:02:36]} 16. Rfe1 {[%clk 0:02:17]}  Nd5 {[%clk 0:02:35]} 17. Bh2 {[%clk 0:02:10]}  Be7 {[%clk 0:02:34]} 18. c4 {[%clk 0:02:08]}  bxc3 {[%clk 0:02:33]} 19. bxc3 {[%clk 0:02:09]}  O-O {[%clk 0:02:32]} 20. c4 {[%clk 0:02:08]}  Nb4 {[%clk 0:02:24]} 21. Rad1 {[%clk 0:01:56]}  Nf6 {[%clk 0:02:23]} 22. Qe2 {[%clk 0:01:35]}  Qa5 {[%clk 0:02:19]} 23. Nc3 {[%clk 0:01:28]}  Rfd8 {[%clk 0:02:15]} 24. c5 {[%clk 0:00:59]}  Nbd5 {[%clk 0:02:11]} 25. Ne4 {[%clk 0:00:53]}  Nxe4 {[%clk 0:02:10]} 26. Qxe4 {[%clk 0:00:54]}  Nc3 {[%clk 0:02:07]} 27. Qg4 {[%clk 0:00:39]}  Nxd1 {[%clk 0:02:04]} 28. Be5 {[%clk 0:00:39]}  g6 {[%clk 0:01:48]} 29. Rxd1 {[%clk 0:00:36]}  Rd5 {[%clk 0:01:39]} 30. h4 {[%clk 0:00:34]}  h5 {[%clk 0:01:38]} 31. Qf4 {[%clk 0:00:33]}  Rxe5 {[%clk 0:01:34]} 32. dxe5 {[%clk 0:00:22]}  Qxc5 {[%clk 0:01:22]} 33. Rd7 {[%clk 0:00:18]}  Rd8 {[%clk 0:01:18]} 34. Rb7 {[%clk 0:00:19]}  Kg7 {[%clk 0:01:10]} 35. Qf3 {[%clk 0:00:17]}  Rf8 {[%clk 0:00:47]} 36. g4 {[%clk 0:00:11]}  Bxh4 {[%clk 0:00:43]} 37. gxh5 {[%clk 0:00:09]}  Qxe5 {[%clk 0:00:43]} 38. hxg6 {[%clk 0:00:06]}  Qg5+ {[%clk 0:00:43]} 39. Kh2 {[%clk 0:00:04]}  Qxg6 {[%clk 0:00:43]} 40. Qc3+ {[%clk 0:00:05]}  Bf6 {[%clk 0:00:42]} 41. Qxc6 {[%clk 0:00:05]}  Rh8# {[%clk 0:00:42]} 0-1


[Site "https://www.chess.com"]

[Event "Titled Tuesday Blitz July 4 Early 2023"]
[White "Hartikainen, Jarmo"]
[Black "Cardozo Munar, Carlos Eduardo"]
[WhiteFideId "503134"]
[BlackFideId "4409477"]
[WhiteElo "2156"]
[BlackElo "2314"]
[Result "0-1"]
[Round "6"]
[TimeControl "180+2"]
[Date "2023.07.04"]
[WhiteClock "0:00:04"]
[BlackClock "0:01:07"]
[Board "192"]

1. e4 {[%clk 0:03:00]}  e6 {[%clk 0:02:54]} 2. d4 {[%clk 0:03:00]}  d5 {[%clk 0:02:53]} 3. Nd2 {[%clk 0:03:00]}  c5 {[%clk 0:02:51]} 4. Ngf3 {[%clk 0:03:00]}  Nc6 {[%clk 0:02:50]} 5. exd5 {[%clk 0:02:59]}  Qxd5 {[%clk 0:02:48]} 6. Bc4 {[%clk 0:02:59]}  Qd7 {[%clk 0:02:48]} 7. Bb5 {[%clk 0:02:13]}  Nf6 {[%clk 0:02:44]} 8. O-O {[%clk 0:02:09]}  cxd4 {[%clk 0:02:44]} 9. Nb3 {[%clk 0:02:01]}  a6 {[%clk 0:02:44]} 10. Bxc6 {[%clk 0:01:33]}  Qxc6 {[%clk 0:02:45]} 11. Nbxd4 {[%clk 0:01:31]}  Qc7 {[%clk 0:02:45]} 12. Bg5 {[%clk 0:01:27]}  Be7 {[%clk 0:02:45]} 13. Re1 {[%clk 0:01:22]}  b5 {[%clk 0:02:42]} 14. Bh4 {[%clk 0:01:20]}  Bb7 {[%clk 0:02:41]} 15. Bg3 {[%clk 0:01:20]}  Qd7 {[%clk 0:02:15]} 16. c3 {[%clk 0:01:12]}  O-O {[%clk 0:02:13]} 17. a4 {[%clk 0:01:06]}  b4 {[%clk 0:02:11]} 18. cxb4 {[%clk 0:00:40]}  Bxb4 {[%clk 0:02:09]} 19. Re2 {[%clk 0:00:27]}  Rfd8 {[%clk 0:02:08]} 20. Qb3 {[%clk 0:00:25]}  a5 {[%clk 0:01:57]} 21. h3 {[%clk 0:00:24]}  Bd5 {[%clk 0:01:55]} 22. Qe3 {[%clk 0:00:19]}  Bc5 {[%clk 0:01:52]} 23. Qe5 {[%clk 0:00:18]}  Bxd4 {[%clk 0:01:38]} 24. Nxd4 {[%clk 0:00:13]}  Bxg2 {[%clk 0:01:32]} 25. Nxe6 {[%clk 0:00:13]}  Bxh3 {[%clk 0:01:16]} 26. Nxd8 {[%clk 0:00:12]}  Rxd8 {[%clk 0:01:17]} 27. Kh2 {[%clk 0:00:12]}  Ng4+ {[%clk 0:01:14]} 28. Kxh3 {[%clk 0:00:12]}  Nxe5+ {[%clk 0:01:13]} 29. Kh2 {[%clk 0:00:12]}  Nf3+ {[%clk 0:01:11]} 30. Kg2 {[%clk 0:00:11]}  Qd5 {[%clk 0:01:11]} 31. Rc1 {[%clk 0:00:11]}  h5 {[%clk 0:01:08]} 32. Rec2 {[%clk 0:00:10]}  Ne1+ {[%clk 0:01:06]} 33. Kf1 {[%clk 0:00:04]}  Nxc2 {[%clk 0:01:07]} 0-1


[Site "https://www.chess.com"]

[Event "Titled Tuesday Blitz July 4 Early 2023"]
[White "Acikel, Mert"]
[Black "Singgih, Diajeng Theresa"]
[WhiteFideId "12956465"]
[BlackFideId "7104391"]
[WhiteElo "2304"]
[BlackElo "2107"]
[Result "1-0"]
[Round "6"]
[TimeControl "180+2"]
[Date "2023.07.04"]
[WhiteClock "0:02:33"]
[BlackClock "0:02:18"]
[Board "194"]

1. e4 {[%clk 0:02:57]}  e5 {[%clk 0:02:57]} 2. Nf3 {[%clk 0:02:57]}  Nc6 {[%clk 0:02:57]} 3. Bc4 {[%clk 0:02:57]}  Bc5 {[%clk 0:02:57]} 4. c3 {[%clk 0:02:57]}  Nf6 {[%clk 0:02:57]} 5. d4 {[%clk 0:02:57]}  exd4 {[%clk 0:02:57]} 6. e5 {[%clk 0:02:58]}  d5 {[%clk 0:02:57]} 7. Bb5 {[%clk 0:02:58]}  Ne4 {[%clk 0:02:57]} 8. cxd4 {[%clk 0:02:59]}  Bb6 {[%clk 0:02:56]} 9. Nc3 {[%clk 0:02:59]}  O-O {[%clk 0:02:54]} 10. Be3 {[%clk 0:02:59]}  Ne7 {[%clk 0:02:44]} 11. Bd3 {[%clk 0:02:51]}  Bf5 {[%clk 0:02:38]} 12. Nh4 {[%clk 0:02:47]}  Nxc3 {[%clk 0:02:34]} 13. bxc3 {[%clk 0:02:45]}  Bxd3 {[%clk 0:02:32]} 14. Qxd3 {[%clk 0:02:46]}  Ng6 {[%clk 0:02:32]} 15. Nxg6 {[%clk 0:02:46]}  fxg6 {[%clk 0:02:31]} 16. O-O {[%clk 0:02:44]}  Qe7 {[%clk 0:02:30]} 17. a4 {[%clk 0:02:41]}  c5 {[%clk 0:02:26]} 18. dxc5 {[%clk 0:02:35]}  Bxc5 {[%clk 0:02:23]} 19. Qxd5+ {[%clk 0:02:35]}  Kh8 {[%clk 0:02:18]} 20. Bxc5 {[%clk 0:02:33]} 1-0


[Site "https://www.chess.com"]

[Event "Titled Tuesday Blitz July 4 Early 2023"]
[White "Aanna12"]
[Black "Torres Hernandez, Leslie Carolin"]
[BlackFideId "8400504"]
[WhiteElo "2079"]
[BlackElo "2303"]
[Result "0-1"]
[Round "6"]
[TimeControl "180+2"]
[Date "2023.07.04"]
[WhiteClock "0:00:00"]
[BlackClock "0:00:05"]
[Board "195"]

1. e4 {[%clk 0:03:00]}  e6 {[%clk 0:02:54]} 2. d3 {[%clk 0:02:59]}  d5 {[%clk 0:02:55]} 3. Nd2 {[%clk 0:02:58]}  Nc6 {[%clk 0:02:55]} 4. Ngf3 {[%clk 0:02:58]}  g5 {[%clk 0:02:53]} 5. g3 {[%clk 0:02:51]}  Qf6 {[%clk 0:02:51]} 6. Bg2 {[%clk 0:02:50]}  h5 {[%clk 0:02:47]} 7. h4 {[%clk 0:02:49]}  g4 {[%clk 0:02:45]} 8. Nh2 {[%clk 0:02:45]}  Bd7 {[%clk 0:02:39]} 9. O-O {[%clk 0:02:44]}  O-O-O {[%clk 0:02:17]} 10. c3 {[%clk 0:02:43]}  dxe4 {[%clk 0:02:16]} 11. Nxe4 {[%clk 0:02:35]}  Qg7 {[%clk 0:02:16]} 12. d4 {[%clk 0:02:26]}  Nh6 {[%clk 0:02:12]} 13. Bf4 {[%clk 0:02:17]}  Nf5 {[%clk 0:01:54]} 14. Qb3 {[%clk 0:02:13]}  f6 {[%clk 0:01:38]} 15. a4 {[%clk 0:02:06]}  e5 {[%clk 0:01:36]} 16. dxe5 {[%clk 0:02:04]}  fxe5 {[%clk 0:01:35]} 17. Bg5 {[%clk 0:02:04]}  Be7 {[%clk 0:01:35]} 18. a5 {[%clk 0:01:59]}  a6 {[%clk 0:01:35]} 19. Bxe7 {[%clk 0:01:56]}  Qxe7 {[%clk 0:01:34]} 20. Ng5 {[%clk 0:01:40]}  Rhf8 {[%clk 0:01:30]} 21. Rfe1 {[%clk 0:01:39]}  Qc5 {[%clk 0:01:21]} 22. Ne4 {[%clk 0:01:27]}  Qa7 {[%clk 0:01:18]} 23. Nf1 {[%clk 0:01:25]}  Rde8 {[%clk 0:00:59]} 24. Ne3 {[%clk 0:01:09]}  Nxe3 {[%clk 0:00:50]} 25. Rxe3 {[%clk 0:01:09]}  Ne7 {[%clk 0:00:47]} 26. Ng5 {[%clk 0:00:24]}  Nf5 {[%clk 0:00:38]} 27. Rd3 {[%clk 0:00:18]}  Nd6 {[%clk 0:00:11]} 28. Ne4 {[%clk 0:00:12]}  Nxe4 {[%clk 0:00:09]} 29. Bxe4 {[%clk 0:00:06]}  Rxf2 {[%clk 0:00:06]} 30. Kh1 {[%clk 0:00:06]}  Ref8 {[%clk 0:00:06]} 31. Bxb7+ {[%clk 0:00:02]}  Qxb7+ {[%clk 0:00:04]} 32. Qxb7+ {[%clk 0:00:02]}  Kxb7 {[%clk 0:00:05]} 33. Rxd7 {[%clk 0:00:02]}  Rxb2 {[%clk 0:00:05]} 34. Re7 {[%clk 0:00:00]}  Rff2 {[%clk 0:00:05]} 0-1


[Site "https://www.chess.com"]

[Event "Titled Tuesday Blitz July 4 Early 2023"]
[White "Vaglio Munoz, Jaime"]
[Black "Blackwhite017"]
[WhiteFideId "6500145"]
[WhiteElo "2302"]
[BlackElo "2058"]
[Result "1-0"]
[Round "6"]
[TimeControl "180+2"]
[Date "2023.07.04"]
[WhiteClock "0:01:39"]
[BlackClock "0:00:00"]
[Board "196"]

1. e4 {[%clk 0:03:00]}  c5 {[%clk 0:02:59]} 2. a3 {[%clk 0:03:00]}  g6 {[%clk 0:02:59]} 3. b4 {[%clk 0:03:00]}  cxb4 {[%clk 0:02:58]} 4. axb4 {[%clk 0:03:00]}  Bg7 {[%clk 0:02:58]} 5. c3 {[%clk 0:03:00]}  d5 {[%clk 0:02:56]} 6. exd5 {[%clk 0:03:00]}  Qxd5 {[%clk 0:02:57]} 7. d4 {[%clk 0:03:00]}  Nf6 {[%clk 0:02:57]} 8. Nf3 {[%clk 0:02:59]}  Bg4 {[%clk 0:02:56]} 9. Be2 {[%clk 0:02:57]}  O-O {[%clk 0:02:56]} 10. h3 {[%clk 0:02:57]}  Bf5 {[%clk 0:02:52]} 11. O-O {[%clk 0:02:53]}  a5 {[%clk 0:02:38]} 12. c4 {[%clk 0:02:51]}  Qd8 {[%clk 0:02:30]} 13. b5 {[%clk 0:02:48]}  b6 {[%clk 0:02:24]} 14. Ba3 {[%clk 0:02:46]}  Re8 {[%clk 0:02:23]} 15. Nc3 {[%clk 0:02:45]}  Ra7 {[%clk 0:02:18]} 16. c5 {[%clk 0:02:42]}  Nd5 {[%clk 0:02:06]} 17. Nxd5 {[%clk 0:02:37]}  Qxd5 {[%clk 0:02:04]} 18. Rc1 {[%clk 0:02:22]}  Nd7 {[%clk 0:01:56]} 19. c6 {[%clk 0:02:21]}  Nf6 {[%clk 0:01:53]} 20. Qa4 {[%clk 0:02:16]}  Ne4 {[%clk 0:01:46]} 21. Bc4 {[%clk 0:02:13]}  Qd8 {[%clk 0:01:44]} 22. Rfd1 {[%clk 0:02:09]}  Nd6 {[%clk 0:01:34]} 23. Ba2 {[%clk 0:02:04]}  Qc7 {[%clk 0:00:55]} 24. Ng5 {[%clk 0:01:59]}  e6 {[%clk 0:00:41]} 25. g4 {[%clk 0:01:56]}  Bh6 {[%clk 0:00:29]} 26. gxf5 {[%clk 0:01:46]}  Bxg5 {[%clk 0:00:28]} 27. fxe6 {[%clk 0:01:45]}  Bxc1 {[%clk 0:00:17]} 28. Bxd6 {[%clk 0:01:41]}  Qxd6 {[%clk 0:00:14]} 29. exf7+ {[%clk 0:01:41]}  Rxf7 {[%clk 0:00:10]} 30. Bxf7+ {[%clk 0:01:41]}  Kxf7 {[%clk 0:00:10]} 31. Qc4+ {[%clk 0:01:41]}  Kg7 {[%clk 0:00:09]} 32. Qxc1 {[%clk 0:01:40]}  Re4 {[%clk 0:00:00]} 33. c7 {[%clk 0:01:39]} 1-0


[Site "https://www.chess.com"]

[Event "Titled Tuesday Blitz July 4 Early 2023"]
[White "Coelho, Ramyres Santana"]
[Black "Guevara Sanchez, Erick Marvin"]
[WhiteFideId "2120690"]
[BlackFideId "6700136"]
[WhiteElo "2298"]
[BlackElo "2057"]
[Result "1-0"]
[Round "6"]
[TimeControl "180+2"]
[Date "2023.07.04"]
[WhiteClock "0:00:12"]
[BlackClock "0:02:06"]
[Board "197"]

1. e4 {[%clk 0:03:00]}  c5 {[%clk 0:03:00]} 2. Nf3 {[%clk 0:03:00]}  d6 {[%clk 0:03:00]} 3. d4 {[%clk 0:03:00]}  cxd4 {[%clk 0:03:01]} 4. Nxd4 {[%clk 0:03:01]}  Nf6 {[%clk 0:03:00]} 5. Nc3 {[%clk 0:03:02]}  g6 {[%clk 0:03:00]} 6. f4 {[%clk 0:03:02]}  Bg7 {[%clk 0:02:59]} 7. e5 {[%clk 0:03:03]}  dxe5 {[%clk 0:02:56]} 8. fxe5 {[%clk 0:03:03]}  Nfd7 {[%clk 0:02:55]} 9. e6 {[%clk 0:03:02]}  Nc5 {[%clk 0:02:48]} 10. exf7+ {[%clk 0:03:01]}  Kf8 {[%clk 0:02:48]} 11. Be3 {[%clk 0:02:50]}  Nbd7 {[%clk 0:02:35]} 12. b4 {[%clk 0:02:47]}  Qb6 {[%clk 0:02:31]} 13. bxc5 {[%clk 0:02:45]}  Nxc5 {[%clk 0:02:29]} 14. Bc4 {[%clk 0:02:27]}  Qb4 {[%clk 0:02:27]} 15. O-O {[%clk 0:01:40]}  Qxc3 {[%clk 0:02:25]} 16. Qe2 {[%clk 0:00:42]}  Bxd4 {[%clk 0:02:22]} 17. Bxd4 {[%clk 0:00:41]}  Qxd4+ {[%clk 0:02:23]} 18. Kh1 {[%clk 0:00:41]}  Bg4 {[%clk 0:02:21]} 19. Qf2 {[%clk 0:00:19]}  Qxc4 {[%clk 0:02:11]} 20. Qd2 {[%clk 0:00:12]}  Ne4 {[%clk 0:02:06]} 21. Qh6# {[%clk 0:00:12]} 1-0


[Site "https://www.chess.com"]

[Event "Titled Tuesday Blitz July 4 Early 2023"]
[White "Csonka, Balazs"]
[Black "Skiadopoulos, Nikolaos"]
[WhiteFideId "742910"]
[BlackFideId "4200772"]
[WhiteElo "2727"]
[BlackElo "1887"]
[Result "1-0"]
[Round "6"]
[TimeControl "180+2"]
[Date "2023.07.04"]
[WhiteClock "0:01:16"]
[BlackClock "0:00:00"]
[Board "201"]

1. d4 {[%clk 0:03:00]}  Nf6 {[%clk 0:02:59]} 2. c4 {[%clk 0:02:59]}  c5 {[%clk 0:02:57]} 3. d5 {[%clk 0:02:55]}  b5 {[%clk 0:02:56]} 4. cxb5 {[%clk 0:02:51]}  a6 {[%clk 0:02:56]} 5. bxa6 {[%clk 0:02:50]}  e6 {[%clk 0:02:54]} 6. Nc3 {[%clk 0:02:47]}  Nxa6 {[%clk 0:02:54]} 7. e4 {[%clk 0:02:46]}  exd5 {[%clk 0:02:40]} 8. e5 {[%clk 0:02:27]}  d4 {[%clk 0:02:35]} 9. exf6 {[%clk 0:02:23]}  dxc3 {[%clk 0:02:34]} 10. Qe2+ {[%clk 0:02:21]}  Be7 {[%clk 0:02:22]} 11. Qxe7+ {[%clk 0:02:15]}  Qxe7+ {[%clk 0:02:22]} 12. fxe7 {[%clk 0:02:16]}  cxb2 {[%clk 0:02:18]} 13. Bxb2 {[%clk 0:02:17]}  Nb4 {[%clk 0:02:16]} 14. Rc1 {[%clk 0:02:01]}  Kxe7 {[%clk 0:02:00]} 15. a3 {[%clk 0:01:57]}  Nc6 {[%clk 0:01:50]} 16. Rxc5 {[%clk 0:01:52]}  f6 {[%clk 0:01:48]} 17. Nf3 {[%clk 0:01:49]}  Rb8 {[%clk 0:01:48]} 18. Rc2 {[%clk 0:01:47]}  Re8 {[%clk 0:01:38]} 19. Be2 {[%clk 0:01:46]}  Ne5 {[%clk 0:01:00]} 20. Nxe5 {[%clk 0:01:42]}  fxe5 {[%clk 0:01:00]} 21. O-O {[%clk 0:01:36]}  d6 {[%clk 0:00:59]} 22. Rd2 {[%clk 0:01:31]}  Rb6 {[%clk 0:00:43]} 23. f4 {[%clk 0:01:29]}  e4 {[%clk 0:00:37]} 24. Bxg7 {[%clk 0:01:28]}  Ba6 {[%clk 0:00:29]} 25. Bxa6 {[%clk 0:01:24]}  Rxa6 {[%clk 0:00:29]} 26. Ra1 {[%clk 0:01:21]}  Ke6 {[%clk 0:00:21]} 27. a4 {[%clk 0:01:18]}  Rea8 {[%clk 0:00:19]} 28. Rda2 {[%clk 0:01:18]}  Kf5 {[%clk 0:00:17]} 29. g3 {[%clk 0:01:18]}  e3 {[%clk 0:00:16]} 30. Ra3 {[%clk 0:01:17]}  Ke4 {[%clk 0:00:13]} 31. Re1 {[%clk 0:01:16]}  Rxa4 {[%clk 0:00:12]} 32. Rexe3+ {[%clk 0:01:16]}  Kf5 {[%clk 0:00:12]} 33. Rxa4 {[%clk 0:01:16]}  Rxa4 {[%clk 0:00:00]} 34. Re2 {[%clk 0:01:16]} 1-0


[Site "https://www.chess.com"]

[Event "Titled Tuesday Blitz July 4 Early 2023"]
[White "Allam, Yara"]
[Black "Sariego Figueredo, Wilfredo"]
[WhiteFideId "10615709"]
[BlackFideId "3500080"]
[WhiteElo "2059"]
[BlackElo "2191"]
[Result "0-1"]
[Round "6"]
[TimeControl "180+2"]
[Date "2023.07.04"]
[WhiteClock "0:00:00"]
[BlackClock "0:00:30"]
[Board "204"]

1. e4 {[%clk 0:03:00]}  c5 {[%clk 0:02:53]} 2. Nf3 {[%clk 0:03:00]}  a6 {[%clk 0:02:49]} 3. d4 {[%clk 0:03:01]}  cxd4 {[%clk 0:02:49]} 4. Nxd4 {[%clk 0:03:01]}  Nf6 {[%clk 0:02:50]} 5. Nc3 {[%clk 0:03:01]}  e5 {[%clk 0:02:49]} 6. Nb3 {[%clk 0:03:00]}  Bb4 {[%clk 0:02:47]} 7. Qd3 {[%clk 0:02:55]}  d5 {[%clk 0:02:40]} 8. Bd2 {[%clk 0:02:51]}  d4 {[%clk 0:02:29]} 9. Ne2 {[%clk 0:02:42]}  Bxd2+ {[%clk 0:02:30]} 10. Nxd2 {[%clk 0:02:41]}  Nc6 {[%clk 0:02:28]} 11. a3 {[%clk 0:02:38]}  O-O {[%clk 0:02:23]} 12. O-O-O {[%clk 0:02:34]}  Ng4 {[%clk 0:02:06]} 13. Qg3 {[%clk 0:02:28]}  f5 {[%clk 0:01:47]} 14. h3 {[%clk 0:02:17]}  Nf6 {[%clk 0:01:46]} 15. f4 {[%clk 0:02:08]}  exf4 {[%clk 0:01:25]} 16. Qxf4 {[%clk 0:02:00]}  fxe4 {[%clk 0:01:24]} 17. Nxe4 {[%clk 0:01:27]}  Nd5 {[%clk 0:01:21]} 18. Qd6 {[%clk 0:01:13]}  Ne3 {[%clk 0:01:13]} 19. Re1 {[%clk 0:01:05]}  Bf5 {[%clk 0:01:08]} 20. Qxd8 {[%clk 0:01:00]}  Raxd8 {[%clk 0:01:03]} 21. N2g3 {[%clk 0:00:59]}  Bg6 {[%clk 0:00:57]} 22. Rg1 {[%clk 0:00:48]}  Rf4 {[%clk 0:00:54]} 23. Bd3 {[%clk 0:00:43]}  Ne5 {[%clk 0:00:41]} 24. Nc5 {[%clk 0:00:20]}  Nxd3+ {[%clk 0:00:36]} 25. cxd3 {[%clk 0:00:19]}  Rc8 {[%clk 0:00:35]} 26. b4 {[%clk 0:00:10]}  b6 {[%clk 0:00:35]} 27. Ne2 {[%clk 0:00:10]}  Rf2 {[%clk 0:00:32]} 28. Nxd4 {[%clk 0:00:00]}  bxc5 {[%clk 0:00:30]} 0-1


[Site "https://www.chess.com"]